[Event "88th Tata Steel Masters 2026"]
[White "Fedoseev,Vladimir"]
[Black "Keymer,Vincent"]
[Site "Wijk aan Zee"]
[Round "2.6"]
[Annotator "TA"]
[Result "1-0"]
[Date "2026.01.18"]
[WhiteElo "2705"]
[BlackElo "2776"]
[PlyCount "87"]
[TimeControl "60"]

{[%evp 19,86,0,1,-4,-1,0,0,9,27,25,30,41,63,45,96,104,105,110,121,131,141,102,100,99,92,106,110,97,166,100,100,121,141,139,139,139,169,166,189,163,162,178,180,180,196,164,188,193,177,191,183,183,197,185,206,187,214,229,259,272,270,270,303,292,344,344,356,340,347]} 1. d4 {[%emt 0:0:0]} Nf6 {[%emt 0:0:0]} 2. c4 {[%emt 0:0:0]} e6 {[%emt 0:0:3]} 3. Nc3 {[%emt 0:0:0]} Bb4 {[%emt 0:0:0]} 4. Qc2 {[%emt 0:0:0]} O-O {[%emt 0:0:0]} 5. Nf3 {[%emt 0:0:0]} c5 {[%emt 0:0:0]} 6. dxc5 {[%emt 0:0:0]} Na6 {[%emt 0:0:0][%cal Yb8a6,Ya6c5,Yc5e4,Ye4d2][%mdl 32]} 7. g3 {[%emt 0:0:0]} Nxc5 {[%emt 0:0:0]} 8. Bg2 {[%emt 0:0:0]} Nce4 {[%emt 0:0:0]} 9. Bd2 {[%emt 0:0:0]} Nxd2 {[%emt 0:0:0]} 10. Nxd2 {[%emt 0:0:0]} a6 {[%emt 0:0:0]} 11. O-O {[%emt 0:0:0] E39: Nimzo-Indian: Classical: 4...c5 5 dxc5 0-0.} Rb8 {[%emt 0:0:53]} 12. Nde4 {[%emt 0:0:0]} Ne8 $146 {[%emt 0:4:8]} ({Predecessor:} 12... Nxe4 13. Nxe4 Be7 14. Rfd1 Qc7 15. Qd2 d6 16. Qf4 Rd8 17. Rac1 b6 18. b4 Bb7 {½-½ Finegold,B (2539)-Hoekstra,M (2302) World op 31st 2003 (2)} )13. c5 {[%emt 0:11:33] The position is equal.} Qc7 {[%emt 0:44:42][%cal Yb7b6]} 14. Rac1 {[%emt 0:23:28]} f5 {[%emt 0:4:58]} 15. Qb3 {[%emt 0:12:26]} Ba5 {[%emt 0:1:37]} 16. Nd2 {[%emt 0:12:13][%cal Ye4d2,Yd2c4,Yc4b6,Yb6d5][%mdl 32] White is more active.} b6 {[%emt 0:4:32]} (16... b5 $14 )17. Nd5 $16 {[%emt 0:6:3]} exd5 {[%emt 0:15:25]} 18. Qxd5+ {[%emt 0:0:8]} Rf7 {[%emt 0:6:19]} 19. cxb6 {[%emt 0:4:7]} Qxb6 {[%emt 0:0:31][%cal Ye8f6] [#] ...Nf6! is the strong threat.} 20. Nc4 {[%emt 0:0:39][%csl Ya5,Yb6]} Bb7 {[%emt 0:0:37]} 21. Nxb6 {[%emt 0:5:1]} ({Of course not} 21. Qxa5 $6 Qxa5 22. Nxa5 Bxg2 23. Kxg2 Rxb2 $15 )Bxd5 {[%emt 0:0:31]} 22. Nxd5 {[%emt 0:0:41]} Rxb2 {[%emt 0:0:32]} 23. Rc5 $36 {[%emt 0:7:41][%mdl 2048] White is on the roll.} Rb5 {[%emt 0:1:4]} (23... Bd2 $16 {keeps fighting.} 24. Rc8 Rf8 )24. Rfc1 {[%emt 0:2:58] White plays on the queen side and is better} (24. Rc8 $18 Rf8 25. Ra8 )Nd6 {[%emt 0:2:52]} 25. e3 {[%emt 0:3:3]} Bd8 {[%emt 0:10:31]} 26. Rxb5 {[%emt 0:1:45][%csl Yd5] Strong Square White (d5)} axb5 {[%emt 0:0:42]} 27. Bf1 {[%emt 0:2:20]} g5 {[%emt 0:2:26]} 28. Rc5 {[%emt 0:0:59]} b4 {[%emt 0:2:17]} 29. Bc4 {[%emt 0:2:9]} Kg7 {[%emt 0:2:15]} 30. Bb3 {[%emt 0:0:42]} Rf8 {[%emt 0:1:38]} 31. Nxb4 {[%emt 0:0:38]} f4 {[%emt 0:1:14]} 32. Rd5 {[%emt 0:1:30]} Be7 {[%emt 0:1:56]} 33. exf4 {[%emt 0:1:37]} gxf4 {[%emt 0:0:30]} 34. Rd4 {[%emt 0:1:5]} fxg3 {[%emt 0:1:26]} 35. hxg3 {[%emt 0:0:38]} h5 {[%emt 0:1:34][%cal Yh7h5,Yh5h4,Yh4h3][%mdl 32]} 36. Nd3 {[%emt 0:2:2]} Kh6 {[%emt 0:0:57]} 37. Ne5 {[%emt 0:1:32]} h4 {[%emt 0:1:3]} 38. g4 {[%emt 0:2:7]} Kg5 {[%emt 0:1:11]} 39. Rd5 {[%emt 0:1:25] [#] and Nc6+ should not be overlooked} Kh6 {[%emt 0:0:31]} 40. Nd3 {[%emt 0:0:0]} h3 {[%emt 0:0:0]} 41. f4 {[%emt 0:24:49]} Kg7 {[%emt 0:22:29]} 42. Kh2 {[%emt 0:0:33]} Rh8 {[%emt 0:0:25]} 43. Ne5 {[%emt 0:1:53]} Rh4 {[%emt 0:2:38]} 44. Rd3 {[%emt 0:1:23] Weighted Error Value: White=0.07 (flawless) /Black=0.17 (very precise)   Missed win:     	White=1     	---        Mistake:       	White=1     	Black=2      OK:         	White=6     	---        Best:        	---       	Black=1} (44. Nxd7 $2 Rxg4 45. Re5 (45. Kxh3 Rxf4 46. Kg3 Rf7 $14 )Bh4 $16 )1-0

[Event "88th Tata Steel Masters 2026"]
[White "Erdogmus,Yagiz Kaan"]
[Black "Aravindh,Chithambaram VR."]
[Site "Wijk aan Zee"]
[Round "2.7"]
[Annotator "TA"]
[Result "1/2-1/2"]
[Date "2026.01.18"]
[WhiteElo "2658"]
[BlackElo "2700"]
[PlyCount "91"]
[TimeControl "60"]

{[%evp 9,90,27,47,39,41,38,39,32,21,46,27,34,23,37,36,26,38,20,46,18,42,44,50,54,51,52,32,46,14,31,65,8,3,12,54,68,42,47,52,54,166,11,11,11,11,8,8,8,9,3,18,11,13,13,20,19,14,0,0,0,0,-8,-8,-8,0,0,0,0,0,0,8,8,8,8,8,8,8,8,8,8,8,0,8]} 1. e4 {[%emt 0:0:0]} c5 {[%emt 0:0:0]} 2. Nf3 {[%emt 0:0:0]} d6 {[%emt 0:0:0]} 3. d4 {[%emt 0:0:0]} cxd4 {[%emt 0:0:0]} 4. Nxd4 {[%emt 0:0:0]} Nf6 {[%emt 0:0:0]} 5. Nc3 {[%emt 0:0:0]} Nbd7 {[%emt 0:0:0]} 6. g4 {[%emt 0:0:0] B56: Classical Sicilian: Unusual Lines.} h6 {[%emt 0:0:0]} 7. h4 {[%emt 0:2:9]} a6 {[%emt 0:0:0]} 8. Rg1 {[%emt 0:10:59] White is slightly better.} Nc5 {[%emt 0:0:0]} 9. Qe2 $146 {[%emt 0:8:31]} ({Predecessor:} 9. f3 e5 10. Nf5 d5 11. g5 hxg5 12. hxg5 g6 13. Ne3 d4 14. gxf6 dxc3 15. Qxd8+ Kxd8 {½-½ Wanders,M-Fischer,S CT King 22551 2020} )g6 {[%emt 0:0:0]} 10. g5 {[%emt 0:3:25]} hxg5 {[%emt 0:0:0]} 11. hxg5 {[%emt 0:0:33]} Nfd7 {[%emt 0:0:0]} 12. Be3 {[%emt 0:9:0]} b5 {[%emt 0:0:0]} 13. O-O-O {[%emt 0:3:43]} Bb7 {[%emt 0:0:0][%cal Ye7e6]} 14. Bg2 {[%emt 0:5:20]} Rc8 {[%emt 0:0:0]} 15. f4 {[%emt 0:5:37]} Rh2 {[%emt 0:0:0]} 16. Rh1 {[%emt 0:7:7]} Rxh1 {[%emt 0:0:0]} 17. Rxh1 {[%emt 0:5:28] A sharp opening} b4 {[%emt 0:0:0]} 18. Nd5 {[%emt 0:2:44]} e6 {[%emt 0:0:44]} 19. Nxb4 {[%emt 0:18:43]} (19. Kb1 {looks sharper.} Bg7 20. Nxb4 Nxe4 21. Rh7 )Qb6 {[%emt 0:1:10]} 20. c3 {[%emt 0:4:45] White is more active.} ({Better is} 20. Nd3 $14 )Nxe4 $11 {[%emt 0:47:47]} 21. Ndc2 {[%emt 0:6:4]} Nec5 {[%emt 0:8:38]} 22. Nd5 {[%emt 0:2:23]} Qa5 {[%emt 0:20:2]} 23. Bxc5 {[%emt 0:1:47]} Bxd5 {[%emt 0:0:48]} 24. Bxd5 {[%emt 0:0:34]} Nxc5 {[%emt 0:0:51]} (24... Qxc5 $14 25. Bb7 (25. Qxa6 exd5 26. Re1+ Kd8 $17 )Rb8 26. Qxa6 (26. Bxa6 Bg7 $16 )Bg7 )25. b4 $2 {[%emt 0:3:18] [#]} (25. Rh8 $18 )Nd3+ {[%emt 0:4:56] The position is equal.} 26. Qxd3 {[%emt 0:0:31]} Qxd5 {[%emt 0:0:35]} 27. Qxd5 {[%emt 0:0:35]} (27. Qxa6 $2 {loses.} Qxh1+ 28. Kb2 Qc6 29. Qxc6+ Rxc6 $19 )exd5 {[%emt 0:0:35][%mdl 4096] Endgame KRB-KRN} 28. Kb2 {[%emt 0:1:56]} Bg7 {[%emt 0:0:49]} 29. Rh3 {[%emt 0:0:58]} Rc4 {[%emt 0:2:40]} 30. Rf3 {[%emt 0:0:31]} Kd7 {[%emt 0:0:41]} 31. Kb3 {[%emt 0:2:1]} Kc6 {[%emt 0:1:6]} 32. a4 {[%emt 0:0:59]} Re4 {[%emt 0:0:43]} 33. Rd3 {[%emt 0:1:40]} Rxf4 {[%emt 0:1:36]} 34. b5+ {[%emt 0:0:31]} axb5 {[%emt 0:0:43]} 35. Nb4+ {[%emt 0:0:30]} Kb7 {[%emt 0:1:15]} 36. axb5 {[%emt 0:1:31]} Rf5 {[%emt 0:1:4]} 37. Rxd5 {[%emt 0:0:54]} Be5 {[%emt 0:0:46]} 38. Nc6 {[%emt 0:0:35]} Rxg5 {[%emt 0:1:38]} 39. Nd8+ {[%emt 0:0:46]} Kb6 {[%emt 0:1:40]} 40. Nxf7 {[%emt 0:0:0]} Rf5 {[%emt 0:0:0]} 41. Nxe5 {[%emt 0:24:59]} Rxe5 {[%emt 0:20:14]} 42. Rxd6+ {[%emt 0:1:43]} Kxb5 {[%emt 0:0:5]} 43. Rxg6 {[%emt 0:0:1]} Re4 {[%emt 0:0:30]} 44. Kc2 {[%emt 0:0:44]} Rh4 {[%emt 0:0:32]} 45. Kb3 {[%emt 0:0:6]} Rb4+ {[%emt 0:0:9]} 46. cxb4 {[%emt 0:0:2] Weighted Error Value: White=0.11 (very precise) /Black=0.09 (flawless)   Mistake:       	White=2     	Black=1      Inaccurate:     	---       	Black=2      OK:         	White=5     	Black=5      Best:        	---       	Black=1} 1/2-1/2

[Event "88th Tata Steel Masters 2026"]
[White "Praggnanandhaa R"]
[Black "Nguyen,Thai Dai Van"]
[Site "Wijk aan Zee"]
[Round "3.1"]
[Annotator "TA"]
[Result "1/2-1/2"]
[Date "2026.01.19"]
[WhiteElo "2758"]
[BlackElo "2656"]
[PlyCount "149"]
[TimeControl "60"]

{[%evp 14,149,11,0,0,0,0,0,1,0,7,6,1,1,1,0,-2,0,0,0,17,-19,17,16,15,8,16,0,0,0,0,0,0,0,12,12,18,13,33,28,21,12,51,48,49,51,58,54,56,56,56,52,47,47,47,43,35,42,50,36,53,38,36,40,46,36,49,49,58,38,39,32,147,119,123,8,8,8,8,8,8,8,43,8,30,31,73,8,64,8,8,8,8,8,8,8,8,8,8,8,13,8,8,8,8,0,8,8,8,8,8,8,8,8,8,8,8,0,8,8,8,8,8,8,8,8,8,8,8,8,8,8,8,8,8,8,8,8]} 1. Nf3 {[%emt 0:0:0]} Nf6 {[%emt 0:0:0]} 2. g3 {[%emt 0:0:0]} c5 {[%emt 0:0:0]} 3. Bg2 {[%emt 0:0:0]} Nc6 {[%emt 0:0:0]} 4. c4 {[%emt 0:0:0]} d5 {[%emt 0:0:0]} 5. cxd5 {[%emt 0:0:0]} Nxd5 {[%emt 0:0:0]} 6. Nc3 {[%emt 0:0:0]} Nc7 {[%emt 0:0:0]} 7. a3 {[%emt 0:0:0]} g6 {[%emt 0:0:0] 7...e6 is setting a new trend.} 8. d3 {[%emt 0:0:0]} Bg7 {[%emt 0:0:0] A34: Symmetrical English: 2 Nc3, lines with ...d5.} 9. Be3 {[%emt 0:0:0]} b6 {[%emt 0:0:0]} 10. h4 {[%emt 0:0:0]} h5 {[%emt 0:0:0]} 11. Rc1 {[%emt 0:1:12]} Bb7 {[%emt 0:0:0]} 12. Ng5 {[%emt 0:3:48][%cal Ye3c5]} Qd7 {[%emt 0:0:0]} 13. O-O {[%emt 0:5:52]} Nd8 {[%emt 0:0:0]} 14. Bxb7 $146 {[%emt 0:20:0]} ({Predecessor:} 14. Bh3 f5 15. Bd2 Nce6 16. e4 Nxg5 17. Bxg5 Nf7 18. Bf4 e5 19. Be3 O-O 20. b4 cxb4 21. axb4 Nd6 22. Bg5 Kh7 23. exf5 Nxf5 24. Ne4 Rf7 25. Ra1 {½-½ Schmidt,H-Vogl,M Team-ch L17K1-R(1-3) 2019} )Nxb7 {[%emt 0:0:0]} 15. Nge4 {[%emt 0:2:35]} Ne6 {[%emt 0:18:57]} 16. b4 {[%emt 0:2:32]} Rc8 {[%emt 0:3:2] White must now prevent ...cxb4.} 17. Qa4 {[%emt 0:15:17]} cxb4 {[%emt 0:39:16]} 18. Nb5 {[%emt 0:5:20]} ({But not} 18. axb4 $6 f5 19. Qxa7 (19. Qxd7+ $2 Kxd7 20. Ra1 Ra8 $19 )fxe4 (19... O-O $2 20. Na4 $16 )20. Nxe4 Rxc1 21. Rxc1 b5 $15 )O-O {[%emt 0:12:2]} 19. Qxb4 {[%emt 0:4:41]} Nbc5 {[%emt 0:3:24]} 20. Nxc5 {[%emt 0:5:31]} bxc5 {[%emt 0:11:25]} 21. Qc4 {[%emt 0:3:19]} Nd4 {[%emt 0:3:58]} 22. Nc3 {[%emt 0:0:57]} Qg4 {[%emt 0:5:15]} 23. Kg2 {[%emt 0:0:52]} Bf6 {[%emt 0:2:10]} 24. f3 {[%emt 0:7:21]} Qd7 {[%emt 0:1:4]} 25. Qd5 {[%emt 0:1:9]} Rfd8 {[%emt 0:3:43]} 26. Qxd7 {[%emt 0:1:50]} Rxd7 {[%emt 0:0:30]} 27. Kf2 {[%emt 0:1:26]} Nb3 {[%emt 0:3:12]} 28. Rb1 {[%emt 0:1:6]} c4 {[%emt 0:0:37]} 29. Ne4 {[%emt 0:5:5]} Bd4 {[%emt 0:1:38]} 30. dxc4 {[%emt 0:8:1]} Bxe3+ {[%emt 0:1:7]} 31. Kxe3 {[%emt 0:0:32]} Na5 {[%emt 0:1:0]} 32. c5 {[%emt 0:0:42]} Nc4+ {[%emt 0:2:3]} 33. Kf2 $1 {[%emt 0:0:31]} Nxa3 {[%emt 0:0:39]} 34. Rb4 {[%emt 0:1:10]} Nc2 {[%emt 0:0:49]} 35. Rb2 {[%emt 0:1:28]} Nd4 {[%emt 0:1:34]} 36. Rd1 {[%emt 0:0:56] [#] And now e3 would win.} Rdd8 {[%emt 0:0:31]} 37. Rb7 {[%emt 0:1:16][%csl Ya7,Ye7]} Kf8 {[%emt 0:0:37]} 38. Rxa7 {[%emt 0:3:16]} Ne6 {[%emt 0:0:31][%csl Yc5,Yd1]} 39. Rxd8+ {[%emt 0:10:0]} Rxd8 $14 {[%emt 0:0:31][%mdl 4096] Endgame KRN-KRN. White is a pawn up.} 40. Ra5 {[%emt 0:0:0]} Rc8 {[%emt 0:0:0]} 41. g4 {[%emt 0:29:49]} hxg4 {[%emt 0:28:54]} 42. fxg4 {[%emt 0:0:9]} f5 {[%emt 0:15:3]} (42... f6 $14 )43. gxf5 $16 {[%emt 0:12:25]} gxf5 {[%emt 0:0:1]} 44. Ng3 {[%emt 0:0:36]} (44. Ng5 $16 Nxg5 (44... Nxc5 $2 {too greedy.} 45. Rxc5 Rb8 46. Rxf5+ Ke8 47. h5 $18 )45. hxg5 )Rxc5 $11 {[%emt 0:4:55]} 45. Rxc5 {[%emt 0:0:19]} Nxc5 {[%emt 0:0:0]} 46. Nxf5 {[%emt 0:0:8] KN-KN. White is a pawn up.} Kf7 {[%emt 0:0:4]} 47. Kf3 {[%emt 0:0:42]} Kf6 {[%emt 0:0:13]} 48. Kf4 {[%emt 0:2:3]} Ne6+ {[%emt 0:3:16]} 49. Kg4 {[%emt 0:0:24]} Nc7 {[%emt 0:0:30]} 50. Ne3 {[%emt 0:6:13]} (50. Ng3 $16 )e6 {[%emt 0:0:39]} (50... Nb5 $11 )51. Kf4 {[%emt 0:3:31]} (51. Kh5 $14 )Nb5 {[%emt 0:0:29] The position is equal.} 52. Nf1 {[%emt 0:1:38]} Nc3 {[%emt 0:0:55]} 53. Ng3 {[%emt 0:0:6]} Nd5+ {[%emt 0:0:40]} 54. Kf3 {[%emt 0:0:4]} Kg6 {[%emt 0:1:11]} 55. Ke4 {[%emt 0:0:11]} Nc3+ {[%emt 0:0:35]} 56. Kf4 {[%emt 0:0:3]} Kh6 {[%emt 0:0:57]} 57. e4 {[%emt 0:2:21]} Nd1 {[%emt 0:0:23]} 58. Kf3 {[%emt 0:0:31]} Nc3 {[%emt 0:0:38]} 59. Kf4 {[%emt 0:0:29]} Nd1 {[%emt 0:0:1]} 60. Kg4 {[%emt 0:0:25]} Nf2+ {[%emt 0:0:47]} 61. Kf3 {[%emt 0:15:7]} Nd3 {[%emt 0:15:20]} 62. Ne2 {[%emt 0:0:24]} e5 {[%emt 0:0:35]} 63. Ng3 {[%emt 0:0:35]} Kg6 {[%emt 0:0:13]} 64. Ke3 {[%emt 0:0:53]} Nc5 {[%emt 0:0:34]} 65. Kf3 {[%emt 0:0:21]} Nd7 {[%emt 0:0:43]} 66. Kg4 {[%emt 0:0:44]} Nf6+ {[%emt 0:0:6]} 67. Kh3 {[%emt 0:0:12]} Kh6 {[%emt 0:0:30]} 68. Kg2 {[%emt 0:0:36]} Kg6 {[%emt 0:0:4]} 69. Kf2 {[%emt 0:0:14]} Kh6 {[%emt 0:0:16]} 70. Ke3 {[%emt 0:0:7]} Kg6 {[%emt 0:0:5]} 71. Kd3 {[%emt 0:0:7]} Kh6 {[%emt 0:0:10]} 72. Kc4 {[%emt 0:0:4]} (72. Kc2 $5 )Nxe4 {[%emt 0:0:12]} 73. Nxe4 {[%emt 0:0:3]} Kh5 {[%emt 0:0:4]} 74. Kd5 {[%emt 0:0:2]} Kxh4 {[%emt 0:0:4]} 75. Kxe5 {[%emt 0:0:2] Weighted Error Value: White=0.10 (very precise) /Black=0.10 (very precise)   Mistake:       	White=3     	Black=2      Inaccurate:     	White=2     	Black=4      OK:         	White=12    	Black=6      Best:        	---       	Black=1      Strong:       	White=1     	---} 1/2-1/2

[Event "88th Tata Steel Masters 2026"]
[White "Erigaisi Arjun"]
[Black "Gukesh D"]
[Site "Wijk aan Zee"]
[Round "3.2"]
[Annotator "TA"]
[Result "1/2-1/2"]
[Date "2026.01.19"]
[WhiteElo "2775"]
[BlackElo "2754"]
[PlyCount "67"]
[TimeControl "60"]

{[%evp 9,67,33,50,63,54,54,63,24,24,10,20,20,22,19,26,19,20,12,20,0,0,0,0,0,0,0,-2,-21,0,0,9,16,10,16,11,0,0,0,0,0,0,-14,-14,-14,-10,-12,-10,-18,-6,-22,0,0,0,0,0,0,0,0,0,0]} 1. d4 {[%emt 0:0:0]} d5 {[%emt 0:0:0]} 2. c4 {[%emt 0:0:0]} dxc4 {[%emt 0:0:0]} 3. e4 {[%emt 0:0:0]} e5 {[%emt 0:0:0]} 4. Nf3 {[%emt 0:0:0]} Bb4+ {[%emt 0:0:0]} 5. Nc3 {[%emt 0:0:0]} Nf6 {[%emt 0:0:0]} 6. Nxe5 {[%emt 0:0:0] D20: Queen's Gambit Accepted: 3 e3 and 3 e4.} b5 {[%emt 0:0:0] Dodges Qa4} 7. f3 {[%emt 0:0:0]} a6 {[%emt 0:0:0]} 8. Bf4 $146 {[%emt 0:0:0] White is slightly better.} ({Predecessor:} 8. a4 Bb7 9. Be2 Nfd7 10. Ng4 Nc6 11. Be3 Na5 12. Qc2 O-O 13. axb5 axb5 14. O-O {½-½ Novikov,I (2485)-Dlugy,M (2514) USA-ch Seniors 2025 (7)} )O-O {[%emt 0:0:0]} 9. Be2 {[%emt 0:12:49]} Qe7 {[%emt 0:7:10]} 10. a4 {[%emt 0:0:0]} c6 {[%emt 0:10:10]} 11. O-O {[%emt 0:0:0]} Bb7 $1 {[%emt 0:3:35]} 12. Qc1 {[%emt 0:4:38]} Nbd7 {[%emt 0:8:24] The position is equal.} 13. Nxd7 {[%emt 0:4:0]} Nxd7 {[%emt 0:0:38][%cal Yf6d7,Yd7f8,Yf8e6][%mdl 32]} 14. g4 {[%emt 0:1:47]} Rfd8 {[%emt 0:3:52]} 15. Rd1 {[%emt 0:6:32]} Nf8 {[%emt 0:1:20]} 16. Bg5 {[%emt 0:8:47]} f6 {[%emt 0:0:40]} 17. Be3 {[%emt 0:0:35]} Ne6 {[%emt 0:2:17]} 18. axb5 {[%emt 0:1:21]} cxb5 {[%emt 0:5:58][%cal Yh7h5]} 19. Bf1 {[%emt 0:8:40]} Qd7 {[%emt 0:10:57]} 20. Qc2 {[%emt 0:8:37]} Bd6 {[%emt 0:11:0]} 21. Qf2 {[%emt 0:0:0]} Qc7 {[%emt 0:7:20]} 22. Rac1 {[%emt 0:2:38]} Qb8 {[%emt 0:10:13]} 23. Ne2 {[%emt 0:11:36]} Nf4 {[%emt 0:1:19]} 24. Nxf4 {[%emt 0:0:43]} Bxf4 {[%emt 0:0:32]} 25. d5 {[%emt 0:2:43]} Bd6 {[%emt 0:3:1]} 26. Bc5 {[%emt 0:10:47]} a5 {[%emt 0:1:7]} 27. Bxd6 {[%emt 0:1:24]} Qxd6 {[%emt 0:0:35]} 28. f4 {[%emt 0:0:35]} a4 {[%emt 0:1:30]} 29. Rc3 {[%emt 0:2:8]} Re8 {[%emt 0:5:54]} 30. Bg2 {[%emt 0:2:49]} Rac8 {[%emt 0:3:41]} 31. Ra3 {[%emt 0:1:59]} Ra8 {[%emt 0:1:58]} 32. Rc3 {[%emt 0:0:35]} Rac8 {[%emt 0:0:36]} 33. Ra3 {[%emt 0:0:35]} Ra8 {[%emt 0:4:48]} 34. Rc3 {[%emt 0:1:5] Weighted Error Value: White=0.05 (flawless) /Black=0.03 (flawless)   Inaccurate:     	White=1     	---        OK:         	White=15    	Black=11     Strong:       	---       	Black=1} 1/2-1/2

[Event "88th Tata Steel Masters 2026"]
[White "Keymer,Vincent"]
[Black "Bluebaum,Matthias"]
[Site "Wijk aan Zee"]
[Round "3.3"]
[Annotator "TA"]
[Result "0-1"]
[Date "2026.01.19"]
[WhiteElo "2776"]
[BlackElo "2679"]
[PlyCount "66"]
[TimeControl "60"]

{[%evp 15,65,18,15,6,10,8,7,6,-13,-2,27,-12,-15,-10,-10,-8,0,-32,-25,-46,-54,-82,-81,-90,-74,-91,-96,-98,-82,-93,-85,-192,-192,-187,-172,-187,-187,-177,-175,-187,-174,-233,-228,-223,-224,-432,-376,-534,-518,-525,-513,-777]} 1. c4 {[%emt 0:0:0]} e6 {[%emt 0:0:0][%cal Ye7e6,Ye6d5][%mdl 32]} 2. d4 {[%emt 0:0:0]} d5 {[%emt 0:0:0]} 3. Nc3 {[%emt 0:0:0]} Nf6 {[%emt 0:0:0]} 4. cxd5 {[%emt 0:0:0]} exd5 {[%emt 0:0:0]} 5. Bg5 {[%emt 0:0:0][%cal Yc1g5,Yg5h4,Yh4g3,Yg3e5][%mdl 32]} Be7 {[%emt 0:0:0]} 6. e3 {[%emt 0:0:0]} h6 {[%emt 0:0:0]} 7. Bh4 {[%emt 0:0:0]} O-O {[%emt 0:0:0]} 8. Bd3 {[%emt 0:0:0]} Re8 {[%emt 0:0:0]} 9. Nf3 {[%emt 0:0:0] D35: Queen's Gambit Declined: Exchange Variation.} c6 {[%emt 0:0:0]} 10. Bg3 {[%emt 0:0:0] is now more promising than 10.0-0.} Bg4 {[%emt 0:0:0]} 11. Qb3 {[%emt 0:2:30] The position is equal.} Qb6 {[%emt 0:0:0]} 12. Ne5 {[%emt 0:12:0]} Be6 $146 {[%emt 0:10:58]} ({Predecessor:} 12... Qxb3 13. axb3 Be6 14. h3 g6 15. Bf4 Kg7 16. g4 Nbd7 17. Ke2 a6 18. Rhg1 Rad8 {0-1 Esipenko,A (2691)-Gharibyan,M (2473) Titled Tuesday intern op 18th Mar Early blitz 2025 (9)} )13. f4 {[%emt 0:13:13]} Ng4 {[%emt 0:9:47]} 14. f5 {[%emt 0:18:29]} Nxe5 {[%emt 0:0:58] A sharp opening} 15. Bxe5 {[%emt 0:0:53]} Bc8 {[%emt 0:4:51]} 16. Bf4 {[%emt 0:2:33]} Nd7 {[%emt 0:10:5]} 17. h3 {[%emt 0:17:10]} Bh4+ {[%emt 0:11:10]} 18. Kd2 {[%emt 0:1:9]} Qd8 {[%emt 0:1:23] Black continues to play with concentration.} 19. g3 {[%emt 0:3:8]} Be7 {[%emt 0:3:49]} 20. Rac1 {[%emt 0:2:13]} Nb6 {[%emt 0:4:30]} 21. g4 {[%emt 0:3:45]} c5 {[%emt 0:4:2]} 22. dxc5 {[%emt 0:19:32]} Bxc5 {[%emt 0:1:34]} 23. Kc2 {[%emt 0:2:16]} (23. Rhe1 $17 )Bxe3 $19 {[%emt 0:2:58]} 24. Bxe3 {[%emt 0:0:31]} Rxe3 {[%emt 0:0:34]} 25. Rce1 {[%emt 0:0:54]} Rxe1 26. Rxe1 {[%emt 0:0:31] [#]} Bd7 $1 {[%emt 0:4:2] And now ...d4 would win.} 27. Qb4 {[%emt 0:1:17]} Qh4 {[%emt 0:4:42]} 28. Re3 {[%emt 0:1:34]} (28. Rd1 $142 )Qf2+ {[%emt 0:4:35]} 29. Re2 {[%emt 0:0:31]} Qg1 {[%emt 0:0:37]} 30. Re7 $2 {[%emt 0:6:2] [#]} (30. Rd2 {is a better defense.} )Rc8 {[%emt 0:4:57]} 31. Kd2 {[%emt 0:0:31]} (31. Bb5 $142 Bxb5 32. Qxb5 Qg2+ 33. Kb3 Qxh3 34. Re8+ Rxe8 35. Qxe8+ Kh7 36. Qxf7 Qxg4 37. Qe6 )Nc4+ {[%emt 0:3:21] Black is clearly winning.} 32. Bxc4 {[%emt 0:0:44]} Rxc4 {[%emt 0:0:31]} 33. Qxb7 {[%emt 0:1:29]} (33. Ne2 $142 Qb1 34. Nc3 )Ba4 {[%emt 0:0:51] Weighted Error Value: White=0.58/Black=0.01 (flawless)   Missed win:     	---       	Black=1      Mistake:       	White=5     	---        Inaccurate:     	White=3     	Black=1      OK:         	White=3     	Black=5      Strong:       	---       	Black=1} 0-1